lending/lending_fUSD_20260104
["ID","MTS","AMOUNT","RATE_DAILY","PERIOD"]
[400417790,1767534632445,-282.33286881,0.00015698,2]
[400417791,1767534632457,-1060.92728506,0.00015698,2]
[400417793,1767534638213,-30868.43746983,0.00015698,2]
[400417794,1767534638225,-2306.1225654,0.00015698,2]
[400417795,1767534638372,-1690.41314215,0.00015698,2]
[400417796,1767534638384,-1927.94999992,0.00015698,2]
[400417797,1767534638416,-63.45430784,0.00015698,2]
[400417798,1767534638431,-1443.45977058,0.00015698,2]
[400417987,1767534640317,-28490.22860836,0.00015698,2]
[400418007,1767534640471,-1759.8369796,0.00015698,2]
[400418014,1767534640528,-644.20590704,0.00015698,2]
[400418017,1767534640540,-3828.86735665,0.00015698,2]
[400418019,1767534640552,-5678.50813704,0.00015698,2]
[400418030,1767534640641,-1375.598704,0.00015698,2]
[400418032,1767534640652,-728858.09630357,0.00015698,2]
[400418034,1767534640662,-5185.0364,0.00015698,2]
[400418036,1767534640674,-684.7274,0.00015698,2]
[400418039,1767534640685,-6357.294,0.00015698,2]
[400418041,1767534640695,-300.0,0.00015723,2]
[400418043,1767534640704,-300.0,0.00015748,2]
[400418045,1767534640714,-300.0,0.00015764,2]
[400418047,1767534640723,-406.94057102,0.00015778,2]
[400418049,1767534640734,-267.14853927,0.00015797,2]
[400418051,1767534640743,-448.389,0.00015798,2]
[400418053,1767534640753,-195.0,0.00015798,2]
[400418055,1767534640764,-300.0,0.00015798,2]
[400418057,1767534640773,-2500.0,0.00015798,2]
[400418059,1767534640783,-195.0,0.00015798,2]
[400418061,1767534640792,-300.0,0.00015798,2]
[400418063,1767534640801,-2500.0,0.00015798,2]
[400418065,1767534640811,-1611.74005586,0.00015798,2]
[400418067,1767534640820,-250.0,0.00015798,2]
[400418069,1767534640830,-195.0,0.00015798,2]
[400418071,1767534640840,-250.0,0.00015798,2]
[400418073,1767534640850,-660.48,0.00015868,2]
[400418075,1767534640859,-590.60167877,0.00015897,2]
[400418077,1767534640869,-500.0,0.00015897,2]
[400418079,1767534640879,-500.0,0.00015897,2]
[400418081,1767534640891,-500.0,0.00015897,2]
[400418083,1767534640902,-4869.58978946,0.00015943,2]
[400418085,1767534640912,-200.0,0.00015956,2]
[400418087,1767534640922,-200.0,0.00016011,2]
[400418089,1767534640932,-1500.0,0.00016067,2]
[400418091,1767534640941,-9400.01,0.00016123,2]
[400418093,1767534640951,-200.0,0.00016162,2]
[400418095,1767534640963,-207.4,0.00016162,2]
[400418098,1767534640972,-215.0738,0.00016162,2]
[400418100,1767534640981,-223.0315306,0.00016162,2]
[400418102,1767534640991,-231.28369723,0.00016162,2]
[400418104,1767534641001,-239.84119403,0.00016162,2]
[400418105,1767534641010,-248.71531821,0.00016162,2]
[400418108,1767534641020,-257.91778498,0.00016162,2]
[400418110,1767534641030,-267.46074303,0.00016162,2]
[400418111,1767534641040,-277.35679052,0.00016162,2]
[400418114,1767534641049,-832.78,0.00016162,2]
[400418117,1767534641071,-4581.52,0.00016168,2]
[400418119,1767534641082,-4869.58978946,0.00016187,2]
[400418121,1767534641092,-4574.13,0.0001625,2]
[400418123,1767534641102,-438.26361039,0.00016257,2]
[400418125,1767534641111,-18682.98415082,0.00016258,2]
[400418127,1767534641121,-206.57971884,0.00016338,2]
[400418129,1767534641132,-796.0,0.0001641,2]
[400418131,1767534641141,-5246.94593055,0.00016432,2]
[400418133,1767534641151,-4869.58978946,0.00016432,2]
[400418135,1767534641161,-500.0,0.00016432,2]
[400418137,1767534641171,-832.78,0.00016436,2]
[400418139,1767534641180,-500.0,0.00016438,2]
[400418141,1767534641190,-500.0,0.00016438,2]
[400418143,1767534641199,-500.0,0.00016438,2]
[400418145,1767534641209,-500.0,0.00016438,2]
[400418147,1767534641219,-500.0,0.00016438,2]
[400418150,1767534641229,-500.0,0.00016438,2]
[400418152,1767534641239,-500.0,0.00016438,2]
[400418153,1767534641248,-500.0,0.00016438,2]
[400418156,1767534641258,-500.0,0.00016438,2]
[400418158,1767534641268,-500.0,0.00016438,2]
[400418160,1767534641277,-500.0,0.00016438,2]
[400418161,1767534641288,-500.0,0.00016438,2]
[400418162,1767534641298,-500.0,0.00016438,2]
[400418163,1767534641308,-500.0,0.00016438,2]
[400418164,1767534641319,-500.0,0.00016438,2]
[400418165,1767534641328,-500.0,0.00016438,2]
[400418166,1767534641338,-500.0,0.00016438,2]
[400418167,1767534641347,-500.0,0.00016438,2]
[400418168,1767534641357,-500.0,0.00016438,2]
[400418169,1767534641367,-500.0,0.00016438,2]
[400418170,1767534641377,-500.0,0.00016438,2]
[400418172,1767534641387,-500.0,0.00016438,2]
[400418174,1767534641396,-500.0,0.00016438,2]
[400418176,1767534641406,-500.0,0.00016438,2]
[400418179,1767534641422,-500.0,0.00016438,2]
[400418181,1767534641432,-500.0,0.00016438,2]
[400418183,1767534641441,-500.0,0.00016438,2]
[400418185,1767534641451,-500.0,0.00016438,2]
[400418187,1767534641462,-500.0,0.00016438,2]
[400418189,1767534641472,-500.0,0.00016438,2]
[400418191,1767534641482,-500.0,0.00016438,2]
[400418193,1767534641492,-500.0,0.00016438,2]
[400418195,1767534641501,-500.0,0.00016438,2]
[400418197,1767534641512,-572.75467696,0.00016438,2]
[400418199,1767534641522,-500.0,0.00016438,2]
[400418201,1767534641532,-500.0,0.00016438,2]
[400418203,1767534641542,-500.0,0.00016438,2]
[400418205,1767534641551,-500.0,0.00016438,2]
[400418207,1767534641561,-500.0,0.00016438,2]
[400418209,1767534641570,-500.0,0.00016438,2]
[400418211,1767534641579,-500.0,0.00016438,2]
[400418213,1767534641589,-500.0,0.00016438,2]
[400418215,1767534641599,-500.0,0.00016438,2]
[400418217,1767534641609,-500.0,0.00016438,2]
[400418219,1767534641619,-500.0,0.00016438,2]
[400418221,1767534641629,-500.0,0.00016438,2]
[400418223,1767534641640,-500.0,0.00016438,2]
[400418225,1767534641651,-500.0,0.00016438,2]
[400418227,1767534641662,-500.0,0.00016438,2]
[400418230,1767534641672,-500.0,0.00016438,2]
[400418232,1767534641681,-500.0,0.00016438,2]
[400418234,1767534641691,-500.0,0.00016438,2]
[400418236,1767534641702,-500.0,0.00016438,2]
[400418238,1767534641712,-500.0,0.00016438,2]
[400418240,1767534641723,-500.0,0.00016438,2]
[400418242,1767534641733,-500.0,0.00016438,2]
[400418244,1767534641743,-500.0,0.00016438,2]
[400418246,1767534641752,-500.0,0.00016438,2]
[400418248,1767534641762,-500.0,0.00016438,2]
[400418250,1767534641772,-500.0,0.00016438,2]
[400418253,1767534641787,-500.0,0.00016438,2]
[400418255,1767534641797,-500.0,0.00016438,2]
[400418257,1767534641807,-500.0,0.00016438,2]
[400418259,1767534641817,-500.0,0.00016438,2]
[400418261,1767534641827,-500.0,0.00016438,2]
[400418263,1767534641837,-500.0,0.00016438,2]
[400418265,1767534641848,-500.0,0.00016438,2]
[400418267,1767534641858,-500.0,0.00016438,2]
[400418269,1767534641868,-250.0,0.00016438,2]
[400418271,1767534641878,-500.0,0.00016438,2]
[400418273,1767534641891,-500.0,0.00016438,2]
[400418275,1767534641901,-500.0,0.00016438,2]
[400418277,1767534641911,-500.0,0.00016438,2]
[400418279,1767534641921,-500.0,0.00016438,2]
[400418281,1767534641931,-5251.45,0.00016438,2]
[400418283,1767534641941,-796.0,0.00016481,2]
[400418286,1767534641952,-5246.94593055,0.00016677,2]
[400418288,1767534641964,-4869.58978946,0.00016677,2]
[400418290,1767534641973,-5258.91,0.00016705,2]
[400418292,1767534641984,-500.0,0.00016706,2]
[400418294,1767534641994,-832.78,0.0001671,2]
[400418296,1767534642003,-151.0,0.0001675,2]
[400418298,1767534642014,-151.0,0.00016763,2]
[400418300,1767534642024,-151.0,0.00016766,2]
[400418302,1767534642034,-1280.0,0.00016893,2]
[400418304,1767534642043,-510.0,0.00016919,2]
[400418306,1767534642052,-5246.94593055,0.00016921,2]
[400418308,1767534642062,-4869.58978946,0.00016921,2]
[400418311,1767534642073,-999.99,0.00016922,2]
[400418313,1767534642082,-2738.92,0.00016922,2]
[400418315,1767534642092,-150.99,0.00016922,2]
[400418317,1767534642102,-299.99,0.00016922,4]
[400418319,1767534642113,-2967.43,0.00016922,2]
[400418321,1767534642122,-1533.44,0.00016922,2]
[400418323,1767534642132,-9999.99,0.00016922,2]
[400418325,1767534642142,-9999.99,0.00016922,2]
[400418327,1767534642152,-17627.85,0.00016922,2]
[400418329,1767534642162,-9982.38,0.00016922,2]
[400418331,1767534642171,-9999.99,0.00016922,2]
[400418333,1767534642181,-150.99,0.00016922,2]
[400418335,1767534642191,-500.0,0.0001698,2]
[400418337,1767534642201,-210.84930442,0.00016983,2]
[400418339,1767534642210,-832.78,0.00016984,2]
[400418341,1767534642219,-4574.13,0.00017023,2]
[400418343,1767534642229,-585.39426931,0.00017088,2]
[400418345,1767534642239,-30000.0,0.00017094,2]
[400418347,1767534642248,-425.53462522,0.00017096,2]
[400418349,1767534642258,-1280.0,0.000171,2]
[400418352,1767534642268,-219.03668828,0.00017166,2]
[400418354,1767534642277,-5246.94593055,0.00017166,2]
[400418356,1767534642288,-4869.58978946,0.00017166,2]
[400418358,1767534642297,-420.0,0.00017167,2]
[400418360,1767534642307,-200.0,0.00017174,2]
[400418362,1767534642318,-425.53462522,0.00017178,2]
[400418364,1767534642327,-796.0,0.00017182,2]
[400418366,1767534642337,-1280.0,0.00017196,2]
[400418368,1767534642347,-425.53462522,0.00017233,2]
[400418370,1767534642356,-250.0,0.00017238,2]
[400418372,1767534642365,-600.88665179,0.00017254,2]
[400418374,1767534642375,-1680.0,0.00017254,2]
[400418376,1767534642386,-832.78,0.00017258,2]
[400418378,1767534642395,-796.0,0.00017258,2]
[400418380,1767534642405,-300.0,0.00017268,2]
[400418382,1767534642416,-300.0,0.00017268,2]
[400418385,1767534642426,-1680.0,0.00017275,2]
[400418387,1767534642436,-159.67108242,0.00017278,2]
[400418389,1767534642446,-425.53462522,0.00017315,2]
[400418391,1767534642456,-1600.0,0.00017365,2]
[400418393,1767534642465,-1452.35412525,0.00017368,2]
[400418395,1767534642476,-425.53462522,0.0001737,2]
[400418397,1767534642485,-250.0,0.00017378,2]
[400418399,1767534642495,-600.0,0.00017378,2]
[400418401,1767534642504,-600.0,0.00017378,2]
[400418403,1767534642514,-600.0,0.00017378,2]
[400418405,1767534642525,-600.0,0.00017378,2]
[400418407,1767534642535,-630.52047785,0.00017378,2]
[400418409,1767534642545,-300.0,0.00017378,2]
[400418411,1767534642555,-195.0,0.00017378,2]
[400418413,1767534642565,-193.0,0.00017378,2]
[400418415,1767534642575,-150.0,0.00017378,2]
[400418417,1767534642584,-300.0,0.00017378,2]
[400418419,1767534642594,-2500.0,0.00017378,2]
[400418421,1767534642603,-198.40981234,0.00017378,2]
[400418424,1767534642614,-195.0,0.00017378,2]
[400418426,1767534642623,-2495.0,0.00017392,2]
[400418428,1767534642633,-5246.94593055,0.00017411,2]
[400418430,1767534642642,-4869.58978946,0.00017411,2]
[400418432,1767534642652,-796.0,0.00017415,2]
[400418434,1767534642662,-796.0,0.00017422,2]
[400418435,1767534642673,-1000.0,0.00017428,2]
[400418436,1767534642683,-425.53462522,0.00017452,2]
[400418437,1767534642692,-796.0,0.00017464,2]
[400418438,1767534642702,-425.53462522,0.00017507,2]
[400418439,1767534642712,-2495.0,0.00017511,2]
[400418440,1767534642723,-287.61899177,0.00017531,2]
[400418441,1767534642732,-832.78,0.00017532,2]
[400418442,1767534642742,-425.53462522,0.00017589,2]
[400418443,1767534642752,-2495.0,0.00017601,2]
[400418445,1767534642762,-917.70497562,0.0001764,2]
[400418446,1767534642772,-425.53462522,0.00017644,2]
[400418449,1767534642782,-5246.94593055,0.00017655,2]
[400418450,1767534642792,-4869.58978946,0.00017655,2]
[400418452,1767534642802,-1000.0,0.000177,2]
[400418455,1767534642811,-425.53462522,0.00017726,2]
[400418457,1767534642821,-425.53462522,0.00017781,2]
[400418459,1767534642832,-4574.13,0.00017797,2]
[400418461,1767534642843,-1000.0,0.000178,2]
[400418463,1767534642852,-832.78,0.00017805,2]
[400418465,1767534642861,-3576.19742,0.0001782,2]
[400418467,1767534642872,-3576.19743,0.0001782,2]
[400418469,1767534642885,-3576.19742,0.0001783,2]
[400418471,1767534642895,-200.0,0.00017855,2]
[400418473,1767534642905,-200.0,0.00017856,2]
[400418475,1767534642915,-200.0,0.00017856,2]
[400418477,1767534642926,-3576.19743,0.0001786,2]
[400418479,1767534642936,-425.53462522,0.00017863,2]
[400418481,1767534642946,-3576.19743,0.0001788,2]
[400418483,1767534642955,-10000.0,0.000179,2]
[400418485,1767534642966,-206.57971884,0.000179,2]
[400418487,1767534642976,-5246.94593055,0.000179,2]
[400418489,1767534642986,-1352.50321908,0.000179,2]
[400418491,1767534642996,-1000.0,0.000179,2]
[400418493,1767534643006,-4869.58978946,0.000179,2]
[400418495,1767534643015,-175.71265842,0.000179,3]
[400418498,1767534643026,-308.37836298,0.000179,2]
[400418501,1767534643035,-2495.0,0.00017908,2]
[400418504,1767534643045,-3576.19742,0.0001791,2]
[400418506,1767534643055,-1452.35412525,0.0001799,2]
[400418508,1767534643065,-1452.35412525,0.0001799,2]
[400418510,1767534643075,-151.0,0.00017996,2]
[400418512,1767534643084,-151.0,0.00017997,2]
[400418514,1767534643094,-2491.0,0.00017999,2]
[400418516,1767534643104,-156622.1283564,0.00017999,2]
[400418518,1767534643113,-300.0,0.00017999,2]
[400418520,1767534643123,-666.0,0.00017999,2]
[400418523,1767534643133,-190406.2642629,0.00017999,2]
[400418526,1767534643143,-666.0,0.00017999,2]
[400418530,1767534643153,-300.0,0.00017999,2]
[400418532,1767534643162,-666.0,0.00017999,2]
[400418534,1767534643171,-2093986.36439972,0.00018,2]
[400420225,1767534661865,500.0,0.00015797,2]
[400420226,1767534662119,500.0,0.00015797,2]
[400420239,1767534664721,500.0,0.00015697,2]
[400420240,1767534664766,244.50208641,0.00015697,2]
[400420242,1767534672599,3529.2505,0.00015698,2]
[400420244,1767534689038,4726.25741359,0.00015698,2]
[400420245,1767534689072,10000.01,0.00015698,2]
[400420246,1767534689104,10000.01,0.00015698,2]
[400420247,1767534689135,10000.01,0.00015698,2]
[400420248,1767534689166,10000.01,0.00015698,2]
[400420249,1767534689198,10000.01,0.00015698,2]
[400420250,1767534689230,10000.01,0.00015698,2]
[400420251,1767534689262,10000.01,0.00015698,2]
[400420252,1767534689293,10000.01,0.00015698,2]
[400420253,1767534689324,10000.01,0.00015698,2]
[400420263,1767534722381,180.25,0.00013522,2]
[400420271,1767534735143,2407.319665,0.00015619,2]
[400420276,1767534764380,4738.08022813,0.00015598,2]
[400420277,1767534781313,300.0,0.00015697,2]
[400420278,1767534795152,1200.0,0.00015697,2]
[400420280,1767534825149,151.99798004,0.00015598,2]
[400420282,1767534846030,195.5040407,0.00015697,2]
[400420284,1767534847427,300.0,0.00015697,2]
[400420289,1767534861778,500.0,0.00015697,2]
[400420290,1767534861833,26.85808613,0.00015697,2]
[400420291,1767534861861,473.14191387,0.00015697,2]
[400420292,1767534861897,500.0,0.00015697,2]
[400420293,1767534861940,500.0,0.00015697,2]
[400420294,1767534861977,500.0,0.00015697,2]
[400420295,1767534862019,500.0,0.00015697,2]
[400420296,1767534862055,500.0,0.00015697,2]
[400420297,1767534862092,500.0,0.00015697,2]
[400420298,1767534862128,500.0,0.00015697,2]
[400420299,1767534862165,359.42094575,0.00015697,2]
[400420300,1767534862201,500.0,0.00015697,2]
[400420301,1767534862236,500.0,0.00015697,2]
[400420302,1767534862272,500.0,0.00015697,2]
[400420303,1767534862317,500.0,0.00015697,2]
[400420304,1767534862355,500.0,0.00015697,2]
[400420305,1767534862402,500.0,0.00015697,2]
[400420332,1767534897920,-746000.0,0.00015698,2]
[400420333,1767534901508,1200.0,0.00015697,2]
[400420334,1767534901546,300.0,0.00015697,2]
[400420335,1767534901582,300.0,0.00015697,2]
[400420336,1767534901624,300.0,0.00015697,2]
[400420343,1767534922745,500.0,0.00015697,2]
[400420344,1767534923073,67.44714038,0.00015697,2]
[400420345,1767534923111,155.67002002,0.00015697,2]
[400420352,1767534927653,-159273.65258641,0.00015698,2]
[400420353,1767534927675,-1000.0,0.00015698,2]
[400420354,1767534927696,-5185.0364,0.00015698,2]
[400420355,1767534927718,-926.5695,0.00015698,2]
[400420356,1767534927738,-6357.294,0.00015698,2]
[400420357,1767534927759,-3570.1597,0.00015698,2]
[400420358,1767534927782,-195.0,0.00015756,2]
[400420359,1767534927804,-226.97311419,0.00015814,2]
[400420360,1767534927825,-2500.0,0.00015814,2]
[400420361,1767534927848,-4738.08022813,0.00015854,2]
[400420362,1767534927869,-300.0,0.0001593,2]
[400420363,1767534927891,-195.0,0.0001593,2]
[400420364,1767534927912,-2500.0,0.00016105,2]
[400420365,1767534927934,-1611.74005586,0.00016105,2]
[400420366,1767534927964,-4738.08022813,0.0001611,2]
[400420367,1767534927986,-200.0,0.00016162,2]
[400420368,1767534928008,-207.4,0.00016162,2]
[400420369,1767534928030,-215.0738,0.00016162,2]
[400420370,1767534928052,-223.0315306,0.00016162,2]
[400420371,1767534928074,-231.28369723,0.00016162,2]
[400420372,1767534928096,-239.84119403,0.00016162,2]
[400420373,1767534928118,-248.71531821,0.00016162,2]
[400420374,1767534928140,-257.91778498,0.00016162,2]
[400420375,1767534928160,-18657.58408346,0.0001623,2]
[400420376,1767534928180,-250.0,0.00016232,2]
[400420377,1767534928201,-9999.99,0.00016232,2]
[400420378,1767534928221,-150.99,0.00016232,2]
[400420379,1767534928242,-17627.85,0.00016232,2]
[400420380,1767534928262,-32387.55,0.00016232,2]
[400420381,1767534928283,-9982.38,0.00016232,2]
[400420382,1767534928306,-9999.99,0.00016232,2]
[400420383,1767534928326,-24156.24,0.00016361,2]
[400420384,1767534928348,-999.99,0.00016361,2]
[400420385,1767534928372,-2738.92,0.00016361,2]
[400420386,1767534928397,-9999.99,0.00016361,2]
[400420387,1767534928420,-150.99,0.00016361,2]
[400420388,1767534928440,-2967.43,0.00016361,2]
[400420389,1767534928461,-3215.66,0.00016361,2]
[400420390,1767534928484,-299.99,0.00016361,4]
[400420391,1767534928509,-1533.44,0.00016361,2]
[400420392,1767534928547,-4738.08022813,0.00016365,2]
[400420393,1767534928569,-300.0,0.00016506,2]
[400420394,1767534928590,-300.0,0.00016506,2]
[400420395,1767534928612,-300.0,0.00016506,2]
[400420396,1767534928634,-195.0,0.00016506,2]
[400420397,1767534928657,-267.46074303,0.0001662,2]
[400420398,1767534928681,-4738.08022813,0.00016621,2]
[400420399,1767534928702,-250.0,0.00016686,2]
[400420400,1767534928725,-300.0,0.00016766,2]
[400420401,1767534928747,-510.0,0.00016827,2]
[400420402,1767534928769,-500.0,0.00016827,2]
[400420403,1767534928790,-151.0,0.0001685,2]
[400420404,1767534928817,-151.0,0.00016859,2]
[400420405,1767534928840,-4738.08022813,0.00016877,2]
[400420406,1767534928861,-151.0,0.00016889,2]
[400420407,1767534928884,-180.25,0.00016903,2]
[400420408,1767534928907,-107563.56,0.00016986,2]
[400420409,1767534928929,-250.0,0.00017,2]
[400420410,1767534928951,-3188.92,0.00017065,2]
[400420411,1767534928977,-652.48639435,0.00017069,2]
[400420412,1767534929002,-500.0,0.00017093,2]
[400420413,1767534929026,-30000.0,0.00017094,2]
[400420414,1767534929049,-425.53462522,0.00017096,2]
[400420415,1767534929072,-500.0,0.00017101,2]
[400420416,1767534929094,-4738.08022813,0.00017133,2]
[400420417,1767534929115,-1680.0,0.00017167,2]
[400420418,1767534929137,-420.0,0.00017167,2]
[400420419,1767534929158,-420.0,0.00017167,2]
[400420420,1767534929178,-425.53462522,0.00017178,2]
[400420421,1767534929199,-425.53462522,0.00017233,2]
[400420422,1767534929219,-1680.0,0.00017254,2]
[400420423,1767534929239,-198.40981234,0.00017268,2]
[400420424,1767534929259,-250.0,0.00017268,2]
[400420425,1767534929279,-300.0,0.00017268,2]
[400420426,1767534929300,-195.0,0.00017268,2]
[400420427,1767534929319,-193.0,0.00017268,2]
[400420428,1767534929340,-150.0,0.00017268,2]
[400420429,1767534929360,-406.94057102,0.00017268,2]
[400420430,1767534929381,-2500.0,0.00017268,2]
[400420431,1767534929403,-600.0,0.00017268,2]
[400420432,1767534929424,-600.0,0.00017268,2]
[400420433,1767534929445,-600.0,0.00017268,2]
[400420434,1767534929481,-600.0,0.00017268,2]
[400420435,1767534929502,-630.52047785,0.00017268,2]
[400420436,1767534929525,-195.0,0.00017268,2]
[400420437,1767534929547,-425.53462522,0.00017315,2]
[400420438,1767534929568,-300.0,0.00017339,2]
[400420439,1767534929589,-300.0,0.00017339,2]
[400420440,1767534929623,-425.53462522,0.0001737,2]
[400420441,1767534929655,-500.0,0.00017375,2]
[400420442,1767534929687,-4738.08022813,0.00017388,2]
[400420443,1767534929714,-425.53462522,0.00017452,2]
[400420444,1767534929741,-425.53462522,0.00017507,2]
[400420445,1767534929764,-425.53462522,0.00017589,2]
[400420446,1767534929788,-917.70497562,0.0001764,2]
[400420447,1767534929812,-425.53462522,0.00017644,2]
[400420448,1767534929837,-4738.08022813,0.00017644,2]
[400420449,1767534929868,-600.88665179,0.00017649,2]
[400420450,1767534929894,-425.53462522,0.00017726,2]
[400420451,1767534929920,-7691.48,0.00017757,2]
[400420452,1767534929946,-425.53462522,0.00017781,2]
[400420453,1767534929976,-200.0,0.00017855,2]
[400420454,1767534930002,-200.0,0.00017856,2]
[400420455,1767534930029,-200.0,0.00017856,2]
[400420456,1767534930055,-425.53462522,0.00017863,2]
[400420457,1767534930080,-6534.2662,0.000179,2]
[400420458,1767534930106,-1352.50321908,0.000179,2]
[400420459,1767534930131,-4738.08022813,0.000179,2]
[400420460,1767534930155,-151.99798004,0.000179,2]
[400420461,1767534930178,-1000.0,0.000179,2]
[400420462,1767534930203,-175.71265842,0.000179,3]
[400420463,1767534930226,-373.02776941,0.000179,2]
[400420464,1767534930250,-277.35679052,0.00017989,2]
[400420465,1767534930276,-86757.0981548,0.00017994,2]
[400420466,1767534930300,-151.0,0.00017997,2]
[400420467,1767534930323,-300.0,0.00017999,2]
[400420468,1767534930347,-666.0,0.00017999,2]
[400420469,1767534930374,-819.156,0.00017999,2]
[400420470,1767534930400,-300.0,0.00017999,2]
[400420471,1767534930424,-666.0,0.00017999,2]
[400420472,1767534930449,-109203.45128095,0.00018,2]
[400420473,1767534932804,500.0,0.00015697,2]
[400420474,1767534932849,409.715854,0.00015697,2]
[400420476,1767534935295,776.6986,0.00015598,2]
[400420499,1767534952971,-151.0,0.000168,2]
[400420500,1767534952998,-151.0,0.000168,2]
[400420501,1767534953023,-247.6319267,0.000169,2]
[400420502,1767534953050,-828.0,0.00017573,2]
[400420503,1767534953076,-3516.0,0.00017584,2]
[400420504,1767534953100,-151.0,0.00017786,2]
[400420505,1767534953124,-151.0,0.00017786,2]
[400420506,1767534953151,-151.0,0.00017802,2]
[400420507,1767534953175,-176653.3680733,0.00018,2]
[400420508,1767534972948,216.89191973,0.00015697,2]
[400420509,1767534979253,500.0,0.00015697,2]
[400420510,1767534979298,586.55895383,0.00015697,2]
[400420511,1767534987442,8913.45104617,0.00015598,2]
[400420512,1767534987483,10000.01,0.00015598,2]
[400420513,1767534987520,10000.01,0.00015598,2]
[400420514,1767534987556,10000.01,0.00015598,2]
[400420515,1767534987593,10000.01,0.00015598,2]
[400420516,1767534987630,10000.01,0.00015598,2]
[400420517,1767534987665,4487.33777008,0.00015598,2]
[400420518,1767534987695,5264.03637008,0.00015598,2]
[400420519,1767534987726,5264.03637008,0.00015598,2]
[400420520,1767534987756,5264.03637008,0.00015598,2]
[400420521,1767534987784,5264.03637008,0.00015598,2]
[400420522,1767534987814,5264.03637008,0.00015598,2]
[400420523,1767534987843,5264.03637008,0.00015598,2]
[400420524,1767534987872,5264.03637008,0.00015598,2]
[400420525,1767534987901,5264.03637008,0.00015598,2]
[400420526,1767534987931,5264.03637008,0.00015598,2]
[400420529,1767535021338,300.0,0.00015597,2]
[400420530,1767535021979,300.0,0.00015597,2]
[400420531,1767535022850,300.0,0.00015597,2]
[400420532,1767535024174,907.99108783,0.00015498,2]
[400420533,1767535024414,-428000.0,0.00015598,2]
[400420534,1767535035352,197.59482883,0.00015498,2]
[400420535,1767535049085,6296.85565204,0.00015498,2]
[400420536,1767535076105,-51000.0,0.00015598,2]
[400420538,1767535093929,996.0,0.00015597,2]
[400420551,1767535118592,636.8010978,0.00015597,2]
[400420552,1767535118640,64.7673335,0.00015597,2]
[400420553,1767535118671,315.54569189,0.00015597,2]
[400420554,1767535121416,501.81860917,0.00015597,2]
[400420555,1767535121460,500.0,0.00015597,2]
[400420556,1767535121520,373.26899397,0.00015597,2]
[400420567,1767535134213,-162000.0,0.00015598,2]
[400420569,1767535201443,300.0,0.00015597,2]
[400420570,1767535201483,300.0,0.00015597,2]
[400420571,1767535201521,1200.0,0.00015597,2]
[400420572,1767535202659,300.0,0.00015597,2]
[400420573,1767535203637,280.0,0.00015598,2]
[400420574,1767535229687,3688.07349593,0.00015498,2]
[400420575,1767535252452,500.0,0.00015597,2]
[400420576,1767535252563,500.0,0.00015597,2]
[400420577,1767535252885,500.0,0.00015597,2]
[400420578,1767535253460,500.0,0.00015597,2]
[400420579,1767535253750,241.30320904,0.00015597,2]
[400420580,1767535253784,258.69679096,0.00015597,2]
[400420581,1767535253825,500.0,0.00015597,2]
[400420582,1767535253866,500.0,0.00015597,2]
[400420583,1767535253910,500.0,0.00015597,2]
[400420584,1767535253952,500.0,0.00015597,2]
[400420585,1767535253997,500.0,0.00015597,2]
[400420586,1767535254042,500.0,0.00015597,2]